[Event "Titled Tuesday Blitz June 20 Late 2023"]
[White "Danielyan, Vahe"]
[Black "Guzman Moneo, Alberto"]
[WhiteFideId "13304828"]
[BlackFideId "2209616"]
[WhiteElo "2423"]
[BlackElo "2157"]
[Result "1-0"]
[Round "1"]
[TimeControl "180+2"]
[Date "2023.06.20"]
[WhiteClock "0:00:47"]
[BlackClock "0:00:25"]
[Board "99"]

1. e4 {[%clk 0:03:00]}  g6 {[%clk 0:02:57]} 2. Nc3 {[%clk 0:03:01]}  Bg7 {[%clk 0:02:57]} 3. d4 {[%clk 0:03:01]}  d6 {[%clk 0:02:57]} 4. Be3 {[%clk 0:03:02]}  a6 {[%clk 0:02:58]} 5. Qd2 {[%clk 0:03:03]}  b5 {[%clk 0:02:58]} 6. O-O-O {[%clk 0:03:01]}  Bb7 {[%clk 0:02:52]} 7. f3 {[%clk 0:02:58]}  Nd7 {[%clk 0:02:51]} 8. h4 {[%clk 0:02:58]}  h6 {[%clk 0:02:48]} 9. h5 {[%clk 0:02:58]}  g5 {[%clk 0:02:47]} 10. Nge2 {[%clk 0:02:56]}  c5 {[%clk 0:02:45]} 11. Ng3 {[%clk 0:02:54]}  cxd4 {[%clk 0:02:40]} 12. Bxd4 {[%clk 0:02:55]}  Ne5 {[%clk 0:02:40]} 13. Nf5 {[%clk 0:02:54]}  Bf8 {[%clk 0:02:21]} 14. Kb1 {[%clk 0:02:53]}  Rc8 {[%clk 0:02:10]} 15. Nd5 {[%clk 0:02:51]}  Bxd5 {[%clk 0:02:07]} 16. exd5 {[%clk 0:02:51]}  Nf6 {[%clk 0:02:03]} 17. a4 {[%clk 0:02:35]}  Qd7 {[%clk 0:01:54]} 18. Ne3 {[%clk 0:01:56]}  Bg7 {[%clk 0:01:46]} 19. axb5 {[%clk 0:01:54]}  axb5 {[%clk 0:01:46]} 20. Qb4 {[%clk 0:01:54]}  O-O {[%clk 0:01:42]} 21. Bxb5 {[%clk 0:01:49]}  Qb7 {[%clk 0:01:37]} 22. Nf5 {[%clk 0:01:47]}  Nxd5 {[%clk 0:01:31]} 23. Qb3 {[%clk 0:01:42]}  Nf4 {[%clk 0:01:14]} 24. g3 {[%clk 0:01:37]}  Ne6 {[%clk 0:01:11]} 25. Bxe5 {[%clk 0:01:20]}  dxe5 {[%clk 0:00:55]} 26. Rd7 {[%clk 0:01:17]}  Rc7 {[%clk 0:00:55]} 27. Nxe7+ {[%clk 0:01:17]}  Kh8 {[%clk 0:00:54]} 28. Rxc7 {[%clk 0:00:58]}  Qxc7 {[%clk 0:00:54]} 29. Ng6+ {[%clk 0:00:53]}  fxg6 {[%clk 0:00:50]} 30. Qxe6 {[%clk 0:00:53]}  Rb8 {[%clk 0:00:39]} 31. Bc4 {[%clk 0:00:49]}  e4 {[%clk 0:00:39]} 32. Bb3 {[%clk 0:00:49]}  Qxg3 {[%clk 0:00:33]} 33. hxg6 {[%clk 0:00:45]}  Qe5 {[%clk 0:00:28]} 34. Rxh6+ {[%clk 0:00:44]}  Bxh6 {[%clk 0:00:25]} 35. Qxe5+ {[%clk 0:00:45]}  Bg7 {[%clk 0:00:25]} 36. Qxb8+ {[%clk 0:00:46]}  Bf8 {[%clk 0:00:25]} 37. Qxf8# {[%clk 0:00:47]} 1-0


[Site "https://www.chess.com"]

[Event "Titled Tuesday Blitz June 20 Late 2023"]
[White "Timerkhanov, Alexander"]
[Black "Arias Igual, Alejandro"]
[WhiteFideId "24177938"]
[BlackFideId "2254905"]
[WhiteElo "2278"]
[BlackElo "2179"]
[Result "1-0"]
[Round "1"]
[TimeControl "180+2"]
[Date "2023.06.20"]
[WhiteClock "0:00:13"]
[BlackClock "0:00:01"]
[Board "103"]

1. d4 {[%clk 0:02:57]}  d5 {[%clk 0:02:59]} 2. Bf4 {[%clk 0:02:57]}  Nf6 {[%clk 0:02:58]} 3. e3 {[%clk 0:02:57]}  c5 {[%clk 0:02:58]} 4. c3 {[%clk 0:02:57]}  Nc6 {[%clk 0:02:58]} 5. Nd2 {[%clk 0:02:58]}  Qb6 {[%clk 0:02:58]} 6. Qb3 {[%clk 0:02:57]}  c4 {[%clk 0:02:58]} 7. Qc2 {[%clk 0:02:57]}  Bg4 {[%clk 0:02:57]} 8. e4 {[%clk 0:02:46]}  e6 {[%clk 0:02:50]} 9. Ne2 {[%clk 0:02:44]}  Bh5 {[%clk 0:02:47]} 10. Ng3 {[%clk 0:02:43]}  Bg6 {[%clk 0:02:47]} 11. f3 {[%clk 0:02:43]}  Be7 {[%clk 0:02:43]} 12. Qc1 {[%clk 0:02:33]}  O-O {[%clk 0:02:37]} 13. h4 {[%clk 0:02:22]}  h6 {[%clk 0:02:24]} 14. h5 {[%clk 0:02:19]}  Bh7 {[%clk 0:02:24]} 15. e5 {[%clk 0:02:18]}  Nd7 {[%clk 0:02:21]} 16. Ne2 {[%clk 0:02:08]}  f6 {[%clk 0:02:18]} 17. exf6 {[%clk 0:02:08]}  Bxf6 {[%clk 0:02:17]} 18. Bg3 {[%clk 0:01:59]}  e5 {[%clk 0:02:16]} 19. b3 {[%clk 0:01:51]}  exd4 {[%clk 0:02:13]} 20. bxc4 {[%clk 0:01:51]}  dxc3 {[%clk 0:02:10]} 21. Nxc3 {[%clk 0:01:33]}  Qe3+ {[%clk 0:02:07]} 22. Ne2 {[%clk 0:01:30]}  Bxa1 {[%clk 0:01:51]} 23. Qxa1 {[%clk 0:01:31]}  d4 {[%clk 0:01:44]} 24. Bf2 {[%clk 0:01:30]}  Qd3 {[%clk 0:01:28]} 25. Nxd4 {[%clk 0:01:24]}  Rfe8+ {[%clk 0:01:27]} 26. Ne4 {[%clk 0:01:23]}  Rxe4+ {[%clk 0:01:14]} 27. fxe4 {[%clk 0:01:21]}  Qxe4+ {[%clk 0:01:15]} 28. Be2 {[%clk 0:01:14]}  Re8 {[%clk 0:01:08]} 29. Qb2 {[%clk 0:01:13]}  Nxd4 {[%clk 0:00:35]} 30. Bxd4 {[%clk 0:01:11]}  Nf6 {[%clk 0:00:24]} 31. Bxf6 {[%clk 0:01:07]}  gxf6 {[%clk 0:00:23]} 32. Rf1 {[%clk 0:00:58]}  Qe3 {[%clk 0:00:21]} 33. Rf2 {[%clk 0:00:53]}  Bd3 {[%clk 0:00:19]} 34. Kf1 {[%clk 0:00:51]}  Bxc4 {[%clk 0:00:15]} 35. Bxc4+ {[%clk 0:00:43]}  Kh7 {[%clk 0:00:11]} 36. Qc2+ {[%clk 0:00:27]}  Kh8 {[%clk 0:00:09]} 37. Kg1 {[%clk 0:00:26]}  Qe1+ {[%clk 0:00:07]} 38. Kh2 {[%clk 0:00:25]}  Qe5+ {[%clk 0:00:07]} 39. g3 {[%clk 0:00:25]}  Qxh5+ {[%clk 0:00:06]} 40. Kg2 {[%clk 0:00:25]}  Qe5 {[%clk 0:00:06]} 41. Qf5 {[%clk 0:00:22]}  Qe4+ {[%clk 0:00:04]} 42. Qxe4 {[%clk 0:00:21]}  Rxe4 {[%clk 0:00:05]} 43. Bd5 {[%clk 0:00:22]}  Rb4 {[%clk 0:00:02]} 44. Rxf6 {[%clk 0:00:21]}  a5 {[%clk 0:00:01]} 45. Rf8+ {[%clk 0:00:20]}  Kg7 {[%clk 0:00:02]} 46. Rf7+ {[%clk 0:00:21]}  Kg6 {[%clk 0:00:02]} 47. Rxb7 {[%clk 0:00:21]}  Rd4 {[%clk 0:00:01]} 48. Bb3 {[%clk 0:00:18]}  Rd2+ {[%clk 0:00:01]} 49. Kh3 {[%clk 0:00:17]}  a4 {[%clk 0:00:02]} 50. Bxa4 {[%clk 0:00:16]}  Rxa2 {[%clk 0:00:02]} 51. Bb3 {[%clk 0:00:15]}  Rd2 {[%clk 0:00:01]} 52. Rb6+ {[%clk 0:00:14]}  Kg5 {[%clk 0:00:01]} 53. Rb5+ {[%clk 0:00:14]}  Kg6 {[%clk 0:00:01]} 54. Be6 {[%clk 0:00:14]}  Kg7 {[%clk 0:00:02]} 55. Kh4 {[%clk 0:00:13]}  Re2 {[%clk 0:00:02]} 56. Bf5 {[%clk 0:00:13]}  Re3 {[%clk 0:00:03]} 57. Kg4 {[%clk 0:00:13]}  Kf6 {[%clk 0:00:03]} 58. Rb6+ {[%clk 0:00:13]}  Kg7 {[%clk 0:00:02]} 59. Kf4 {[%clk 0:00:13]}  Rc3 {[%clk 0:00:03]} 60. Rg6+ {[%clk 0:00:12]}  Kf7 {[%clk 0:00:02]} 61. Rxh6 {[%clk 0:00:13]}  Rc4+ {[%clk 0:00:03]} 62. Kg5 {[%clk 0:00:13]}  Rc5 {[%clk 0:00:03]} 63. g4 {[%clk 0:00:13]}  Ra5 {[%clk 0:00:02]} 64. Rh7+ {[%clk 0:00:13]}  Kg8 {[%clk 0:00:02]} 65. Rb7 {[%clk 0:00:14]}  Rc5 {[%clk 0:00:02]} 66. Kf6 {[%clk 0:00:13]}  Rc6+ {[%clk 0:00:02]} 67. Be6+ {[%clk 0:00:14]}  Kh8 {[%clk 0:00:03]} 68. Rb8+ {[%clk 0:00:14]}  Kh7 {[%clk 0:00:03]} 69. g5 {[%clk 0:00:12]}  Ra6 {[%clk 0:00:01]} 70. g6+ {[%clk 0:00:12]}  Kh6 {[%clk 0:00:01]} 71. Rh8# {[%clk 0:00:13]} 1-0


[Site "https://www.chess.com"]

[Event "Titled Tuesday Blitz June 20 Late 2023"]
[White "Fernandez Siles, Luis"]
[Black "Lamard, Guillaume"]
[WhiteFideId "2209420"]
[BlackFideId "600261"]
[WhiteElo "2195"]
[BlackElo "2413"]
[Result "0-1"]
[Round "1"]
[TimeControl "180+2"]
[Date "2023.06.20"]
[WhiteClock "0:00:29"]
[BlackClock "0:01:31"]
[Board "104"]

1. e4 {[%clk 0:03:00]}  c5 {[%clk 0:02:58]} 2. Nf3 {[%clk 0:02:59]}  d6 {[%clk 0:02:59]} 3. Bb5+ {[%clk 0:02:58]}  Bd7 {[%clk 0:02:58]} 4. Bxd7+ {[%clk 0:02:58]}  Nxd7 {[%clk 0:02:59]} 5. O-O {[%clk 0:02:56]}  Ngf6 {[%clk 0:02:59]} 6. Re1 {[%clk 0:02:53]}  e6 {[%clk 0:02:59]} 7. c3 {[%clk 0:02:53]}  Be7 {[%clk 0:02:59]} 8. d4 {[%clk 0:02:53]}  O-O {[%clk 0:02:59]} 9. d5 {[%clk 0:02:46]}  exd5 {[%clk 0:02:50]} 10. exd5 {[%clk 0:02:46]}  Nb6 {[%clk 0:02:50]} 11. a4 {[%clk 0:02:03]}  Nbxd5 {[%clk 0:02:49]} 12. c4 {[%clk 0:02:02]}  Nb4 {[%clk 0:02:48]} 13. b3 {[%clk 0:02:01]}  d5 {[%clk 0:02:41]} 14. cxd5 {[%clk 0:01:58]}  Nfxd5 {[%clk 0:02:42]} 15. Bb2 {[%clk 0:01:58]}  Bf6 {[%clk 0:02:42]} 16. Ne5 {[%clk 0:01:57]}  Re8 {[%clk 0:02:34]} 17. Nd2 {[%clk 0:01:57]}  Nf4 {[%clk 0:02:31]} 18. Re3 {[%clk 0:01:29]}  Nfd3 {[%clk 0:02:05]} 19. Nxd3 {[%clk 0:01:24]}  Rxe3 {[%clk 0:02:05]} 20. Bxf6 {[%clk 0:01:16]}  Qxf6 {[%clk 0:01:57]} 21. Nxb4 {[%clk 0:01:10]}  Re5 {[%clk 0:01:52]} 22. Nc2 {[%clk 0:00:48]}  Rd8 {[%clk 0:01:49]} 23. Qc1 {[%clk 0:00:38]}  Re2 {[%clk 0:01:44]} 24. Nf3 {[%clk 0:00:29]}  Rxc2 {[%clk 0:01:31]} 0-1


[Site "https://www.chess.com"]

[Event "Titled Tuesday Blitz June 20 Late 2023"]
[White "Sun, Rick"]
[Black "Bogaudinov, Rushan"]
[WhiteFideId "30909481"]
[BlackFideId "4129288"]
[WhiteElo "2169"]
[BlackElo "1967"]
[Result "1-0"]
[Round "1"]
[TimeControl "180+2"]
[Date "2023.06.20"]
[WhiteClock "0:00:05"]
[BlackClock "0:00:00"]
[Board "107"]

1. e4 {[%clk 0:03:00]}  a6 {[%clk 0:02:57]} 2. a4 {[%clk 0:02:59]}  e6 {[%clk 0:02:56]} 3. d4 {[%clk 0:02:59]}  d5 {[%clk 0:02:55]} 4. exd5 {[%clk 0:02:59]}  Qxd5 {[%clk 0:02:53]} 5. Nf3 {[%clk 0:03:00]}  Nf6 {[%clk 0:02:53]} 6. Bd3 {[%clk 0:02:57]}  c5 {[%clk 0:02:47]} 7. O-O {[%clk 0:02:51]}  Nc6 {[%clk 0:02:46]} 8. Nc3 {[%clk 0:02:50]}  Qh5 {[%clk 0:02:45]} 9. dxc5 {[%clk 0:01:51]}  Bxc5 {[%clk 0:02:43]} 10. Ne4 {[%clk 0:01:48]}  Be7 {[%clk 0:02:39]} 11. Qe2 {[%clk 0:01:44]}  O-O {[%clk 0:02:32]} 12. Ng3 {[%clk 0:01:16]}  Qa5 {[%clk 0:02:03]} 13. c3 {[%clk 0:01:14]}  Qc7 {[%clk 0:01:59]} 14. Re1 {[%clk 0:01:10]}  b6 {[%clk 0:01:57]} 15. Ng5 {[%clk 0:01:04]}  Bb7 {[%clk 0:01:49]} 16. Nh5 {[%clk 0:00:49]}  h6 {[%clk 0:01:43]} 17. Nxf6+ {[%clk 0:00:46]}  Bxf6 {[%clk 0:01:41]} 18. Qe4 {[%clk 0:00:22]}  Rfd8 {[%clk 0:01:18]} 19. Qh7+ {[%clk 0:00:20]}  Kf8 {[%clk 0:01:18]} 20. Nxe6+ {[%clk 0:00:18]}  fxe6 {[%clk 0:01:14]} 21. Rxe6 {[%clk 0:00:13]}  Qf7 {[%clk 0:00:57]} 22. Qh8+ {[%clk 0:00:13]}  Qg8 {[%clk 0:00:56]} 23. Rxf6+ {[%clk 0:00:13]}  gxf6 {[%clk 0:00:56]} 24. Qxf6+ {[%clk 0:00:14]}  Qf7 {[%clk 0:00:54]} 25. Bxh6+ {[%clk 0:00:14]}  Kg8 {[%clk 0:00:46]} 26. Bc4 {[%clk 0:00:12]}  Kh7 {[%clk 0:00:10]} 27. Bxf7 {[%clk 0:00:08]}  Rg8 {[%clk 0:00:08]} 28. Bxg8+ {[%clk 0:00:06]}  Rxg8 {[%clk 0:00:09]} 29. Qf7+ {[%clk 0:00:06]}  Kh8 {[%clk 0:00:09]} 30. Be3 {[%clk 0:00:06]}  Ne5 {[%clk 0:00:08]} 31. Bd4 {[%clk 0:00:05]}  Rxg2+ {[%clk 0:00:07]} 32. Kf1 {[%clk 0:00:06]}  Rg7 {[%clk 0:00:04]} 33. Bxe5 {[%clk 0:00:06]}  Bg2+ {[%clk 0:00:00]} 34. Ke1 {[%clk 0:00:05]} 1-0


[Site "https://www.chess.com"]

[Event "Titled Tuesday Blitz June 20 Late 2023"]
[White "Jaracz, Pawel"]
[Black "sebastianmarinp"]
[WhiteFideId "1102222"]
[WhiteElo "2454"]
[BlackElo "2368"]
[Result "1-0"]
[Round "1"]
[TimeControl "180+2"]
[Date "2023.06.20"]
[WhiteClock "0:01:00"]
[BlackClock "0:00:06"]
[Board "109"]

1. Nf3 {[%clk 0:02:58]}  Nf6 {[%clk 0:02:57]} 2. d4 {[%clk 0:02:57]}  e6 {[%clk 0:02:44]} 3. c4 {[%clk 0:02:55]}  Bb4+ {[%clk 0:02:40]} 4. Nbd2 {[%clk 0:02:53]}  O-O {[%clk 0:02:37]} 5. e3 {[%clk 0:02:51]}  b6 {[%clk 0:02:28]} 6. Bd3 {[%clk 0:02:51]}  Ba6 {[%clk 0:02:18]} 7. O-O {[%clk 0:02:50]}  d5 {[%clk 0:02:16]} 8. Qc2 {[%clk 0:02:36]}  c5 {[%clk 0:01:50]} 9. dxc5 {[%clk 0:02:33]}  Bxc5 {[%clk 0:01:47]} 10. a3 {[%clk 0:02:30]}  Nbd7 {[%clk 0:01:38]} 11. b4 {[%clk 0:02:30]}  Be7 {[%clk 0:01:31]} 12. Qa4 {[%clk 0:02:25]}  dxc4 {[%clk 0:01:22]} 13. Bxc4 {[%clk 0:02:22]}  Bxc4 {[%clk 0:01:19]} 14. Nxc4 {[%clk 0:02:22]}  Qc7 {[%clk 0:01:17]} 15. Qb3 {[%clk 0:02:12]}  a5 {[%clk 0:01:09]} 16. Bb2 {[%clk 0:02:09]}  axb4 {[%clk 0:00:54]} 17. axb4 {[%clk 0:02:08]}  Nd5 {[%clk 0:00:53]} 18. Rac1 {[%clk 0:01:32]}  Bxb4 {[%clk 0:00:48]} 19. Nce5 {[%clk 0:01:29]}  Qb7 {[%clk 0:00:44]} 20. e4 {[%clk 0:01:26]}  Nxe5 {[%clk 0:00:40]} 21. Bxe5 {[%clk 0:01:18]}  Ra3 {[%clk 0:00:34]} 22. Qb2 {[%clk 0:01:15]}  f6 {[%clk 0:00:16]} 23. exd5 {[%clk 0:01:02]}  fxe5 {[%clk 0:00:12]} 24. Qxb4 {[%clk 0:01:02]}  Raxf3 {[%clk 0:00:10]} 25. gxf3 {[%clk 0:01:01]}  Qxd5 {[%clk 0:00:06]} 26. Qe4 {[%clk 0:01:00]} 1-0


[Site "https://www.chess.com"]

[Event "Titled Tuesday Blitz June 20 Late 2023"]
[White "Wang, Isaac"]
[Black "Salimova, Nurgyul"]
[WhiteFideId "30977185"]
[BlackFideId "2915138"]
[WhiteElo "2367"]
[BlackElo "2343"]
[Result "0-1"]
[Round "1"]
[TimeControl "180+2"]
[Date "2023.06.20"]
[WhiteClock "0:00:51"]
[BlackClock "0:01:06"]
[Board "110"]

1. d4 {[%clk 0:02:59]}  Nf6 {[%clk 0:02:57]} 2. c4 {[%clk 0:02:58]}  e6 {[%clk 0:02:57]} 3. Nf3 {[%clk 0:02:58]}  d5 {[%clk 0:02:56]} 4. Nc3 {[%clk 0:02:57]}  Nbd7 {[%clk 0:02:54]} 5. Bf4 {[%clk 0:02:51]}  c6 {[%clk 0:02:47]} 6. e3 {[%clk 0:02:51]}  Nh5 {[%clk 0:02:44]} 7. Bg5 {[%clk 0:02:50]}  Be7 {[%clk 0:02:44]} 8. Bxe7 {[%clk 0:02:49]}  Qxe7 {[%clk 0:02:45]} 9. Ne5 {[%clk 0:02:49]}  Nhf6 {[%clk 0:02:45]} 10. Nxd7 {[%clk 0:02:46]}  Bxd7 {[%clk 0:02:45]} 11. Be2 {[%clk 0:02:46]}  O-O {[%clk 0:02:44]} 12. O-O {[%clk 0:02:46]}  Rad8 {[%clk 0:02:41]} 13. Qb3 {[%clk 0:02:45]}  Bc8 {[%clk 0:02:41]} 14. Rad1 {[%clk 0:02:45]}  Rfe8 {[%clk 0:02:31]} 15. Qc2 {[%clk 0:02:41]}  e5 {[%clk 0:02:24]} 16. cxd5 {[%clk 0:02:38]}  Nxd5 {[%clk 0:02:25]} 17. Nxd5 {[%clk 0:02:31]}  Rxd5 {[%clk 0:02:24]} 18. dxe5 {[%clk 0:02:27]}  Rxe5 {[%clk 0:02:25]} 19. Bd3 {[%clk 0:02:19]}  g6 {[%clk 0:02:24]} 20. e4 {[%clk 0:02:16]}  Be6 {[%clk 0:02:17]} 21. b3 {[%clk 0:02:13]}  g5 {[%clk 0:02:08]} 22. Qc3 {[%clk 0:02:09]}  Qc5 {[%clk 0:01:58]} 23. Qd2 {[%clk 0:02:06]}  Rd8 {[%clk 0:01:56]} 24. Qe2 {[%clk 0:02:06]}  Kg7 {[%clk 0:01:54]} 25. h3 {[%clk 0:02:04]}  h6 {[%clk 0:01:53]} 26. Kh2 {[%clk 0:02:04]}  f5 {[%clk 0:01:38]} 27. f4 {[%clk 0:01:56]}  gxf4 {[%clk 0:01:38]} 28. Rxf4 {[%clk 0:01:54]}  Rd4 {[%clk 0:01:07]} 29. Qf2 {[%clk 0:01:06]}  fxe4 {[%clk 0:01:06]} 30. Bxe4 {[%clk 0:01:01]}  Rxd1 {[%clk 0:01:04]} 31. Qh4 {[%clk 0:00:56]}  Qg1+ {[%clk 0:01:03]} 32. Kg3 {[%clk 0:00:55]}  Rg5+ {[%clk 0:01:03]} 33. Kf3 {[%clk 0:00:51]}  Qxg2+ {[%clk 0:01:03]} 34. Ke3 {[%clk 0:00:52]}  Qd2+ {[%clk 0:01:04]} 35. Kf3 {[%clk 0:00:52]}  Rf1+ {[%clk 0:01:05]} 36. Qf2 {[%clk 0:00:51]}  Rxf2# {[%clk 0:01:06]} 0-1


[Site "https://www.chess.com"]

[Event "Titled Tuesday Blitz June 20 Late 2023"]
[White "Katz, Alexander"]
[Black "Mikhalsky, Vladimir"]
[WhiteFideId "2039796"]
[BlackFideId "14144352"]
[WhiteElo "2389"]
[BlackElo "2236"]
[Result "1-0"]
[Round "1"]
[TimeControl "180+2"]
[Date "2023.06.20"]
[WhiteClock "0:01:14"]
[BlackClock "0:00:00"]
[Board "111"]

1. e4 {[%clk 0:02:58]}  g6 {[%clk 0:02:47]} 2. d4 {[%clk 0:02:58]}  Bg7 {[%clk 0:02:44]} 3. Nc3 {[%clk 0:02:57]}  d6 {[%clk 0:02:43]} 4. f4 {[%clk 0:02:55]}  Nf6 {[%clk 0:02:42]} 5. Nf3 {[%clk 0:02:56]}  O-O {[%clk 0:02:40]} 6. Bd3 {[%clk 0:02:56]}  Na6 {[%clk 0:02:34]} 7. O-O {[%clk 0:02:53]}  c5 {[%clk 0:02:27]} 8. d5 {[%clk 0:02:53]}  b5 {[%clk 0:02:11]} 9. Bxb5 {[%clk 0:02:51]}  Qb6 {[%clk 0:02:05]} 10. Bc4 {[%clk 0:02:43]}  Rb8 {[%clk 0:01:57]} 11. e5 {[%clk 0:02:42]}  dxe5 {[%clk 0:01:50]} 12. fxe5 {[%clk 0:02:42]}  Ng4 {[%clk 0:01:50]} 13. Qe2 {[%clk 0:02:40]}  h5 {[%clk 0:01:34]} 14. b3 {[%clk 0:02:34]}  Nc7 {[%clk 0:01:19]} 15. Bf4 {[%clk 0:02:24]}  Ba6 {[%clk 0:01:12]} 16. h3 {[%clk 0:02:22]}  Nh6 {[%clk 0:01:11]} 17. Bxa6 {[%clk 0:02:16]}  Qxa6 {[%clk 0:01:03]} 18. Qxa6 {[%clk 0:02:05]}  Nxa6 {[%clk 0:01:03]} 19. Ne4 {[%clk 0:02:06]}  c4 {[%clk 0:00:53]} 20. bxc4 {[%clk 0:02:04]}  Rfc8 {[%clk 0:00:52]} 21. Nfd2 {[%clk 0:01:55]}  Rb2 {[%clk 0:00:48]} 22. Rfc1 {[%clk 0:01:53]}  Nb4 {[%clk 0:00:47]} 23. Rab1 {[%clk 0:01:51]}  Nxa2 {[%clk 0:00:20]} 24. Rxb2 {[%clk 0:01:50]}  Nxc1 {[%clk 0:00:20]} 25. Kf1 {[%clk 0:01:48]}  Nf5 {[%clk 0:00:20]} 26. c5 {[%clk 0:01:31]}  Nd4 {[%clk 0:00:17]} 27. c6 {[%clk 0:01:31]}  e6 {[%clk 0:00:17]} 28. Nd6 {[%clk 0:01:27]}  Rc7 {[%clk 0:00:14]} 29. Ne8 {[%clk 0:01:16]}  Rc8 {[%clk 0:00:14]} 30. c7 {[%clk 0:01:15]}  exd5 {[%clk 0:00:00]} 31. Rb8 {[%clk 0:01:14]} 1-0


[Site "https://www.chess.com"]

[Event "Titled Tuesday Blitz June 20 Late 2023"]
[White "Papasimakopoulos, Alexandros"]
[Black "Lalanne, Pablo"]
[WhiteFideId "4244125"]
[BlackFideId "112151"]
[WhiteElo "2359"]
[BlackElo "2120"]
[Result "1-0"]
[Round "1"]
[TimeControl "180+2"]
[Date "2023.06.20"]
[WhiteClock "0:00:55"]
[BlackClock "0:00:00"]
[Board "115"]

1. d4 {[%clk 0:02:55]}  Nf6 {[%clk 0:02:59]} 2. c4 {[%clk 0:02:54]}  e6 {[%clk 0:02:59]} 3. Nc3 {[%clk 0:02:51]}  Bb4 {[%clk 0:02:57]} 4. Qc2 {[%clk 0:02:50]}  d5 {[%clk 0:02:55]} 5. cxd5 {[%clk 0:02:50]}  exd5 {[%clk 0:02:53]} 6. Bg5 {[%clk 0:02:49]}  h6 {[%clk 0:02:45]} 7. Bh4 {[%clk 0:02:49]}  O-O {[%clk 0:02:43]} 8. e3 {[%clk 0:02:49]}  c6 {[%clk 0:02:32]} 9. Bd3 {[%clk 0:02:49]}  Re8 {[%clk 0:02:27]} 10. Nf3 {[%clk 0:02:48]}  Nbd7 {[%clk 0:02:23]} 11. O-O {[%clk 0:02:46]}  Bd6 {[%clk 0:01:55]} 12. Bg3 {[%clk 0:02:39]}  Qe7 {[%clk 0:01:53]} 13. Rab1 {[%clk 0:02:38]}  a5 {[%clk 0:01:52]} 14. a3 {[%clk 0:02:38]}  Bxg3 {[%clk 0:01:41]} 15. hxg3 {[%clk 0:02:37]}  Ne4 {[%clk 0:01:40]} 16. Bxe4 {[%clk 0:02:36]}  dxe4 {[%clk 0:01:40]} 17. Nd2 {[%clk 0:02:37]}  Nf6 {[%clk 0:01:40]} 18. b4 {[%clk 0:02:37]}  axb4 {[%clk 0:01:40]} 19. axb4 {[%clk 0:02:38]}  Bf5 {[%clk 0:01:31]} 20. b5 {[%clk 0:02:27]}  Rac8 {[%clk 0:01:25]} 21. bxc6 {[%clk 0:02:27]}  Rxc6 {[%clk 0:01:25]} 22. Qb3 {[%clk 0:02:22]}  Rec8 {[%clk 0:01:20]} 23. Na4 {[%clk 0:02:19]}  R8c7 {[%clk 0:01:09]} 24. Nc5 {[%clk 0:02:08]}  b6 {[%clk 0:01:02]} 25. Na6 {[%clk 0:02:08]}  Rc8 {[%clk 0:00:54]} 26. Nb4 {[%clk 0:01:51]}  Rc3 {[%clk 0:00:50]} 27. Qa4 {[%clk 0:01:45]}  Ng4 {[%clk 0:00:33]} 28. Nd5 {[%clk 0:01:21]}  Qg5 {[%clk 0:00:31]} 29. Rfd1 {[%clk 0:01:17]}  Rc2 {[%clk 0:00:20]} 30. Qb4 {[%clk 0:01:05]}  Kh7 {[%clk 0:00:17]} 31. Nf4 {[%clk 0:01:03]}  h5 {[%clk 0:00:15]} 32. Rb2 {[%clk 0:01:01]}  h4 {[%clk 0:00:14]} 33. Rxc2 {[%clk 0:01:00]}  Rxc2 {[%clk 0:00:15]} 34. Nh3 {[%clk 0:00:59]}  Qf6 {[%clk 0:00:13]} 35. gxh4 {[%clk 0:00:58]}  Qxh4 {[%clk 0:00:11]} 36. Qb3 {[%clk 0:00:58]}  Rc6 {[%clk 0:00:09]} 37. Qxf7 {[%clk 0:00:57]}  Bg6 {[%clk 0:00:06]} 38. Qf4 {[%clk 0:00:54]}  Rf6 {[%clk 0:00:06]} 39. Qg3 {[%clk 0:00:55]}  Qxg3 {[%clk 0:00:05]} 40. fxg3 {[%clk 0:00:56]}  Nxe3 {[%clk 0:00:05]} 41. Re1 {[%clk 0:00:56]}  Nf5 {[%clk 0:00:03]} 42. Nxe4 {[%clk 0:00:56]}  Rf8 {[%clk 0:00:00]} 43. d5 {[%clk 0:00:55]} 1-0


[Site "https://www.chess.com"]